[Event "Titled Tuesday Blitz June 20 Late 2023"]
[White "K2JW"]
[Black "Santos Flores, Alberto"]
[BlackFideId "3601234"]
[WhiteElo "2335"]
[BlackElo "2235"]
[Result "1/2-1/2"]
[Round "6"]
[TimeControl "180+2"]
[Date "2023.06.20"]
[WhiteClock "0:00:02"]
[BlackClock "0:00:26"]
[Board "114"]

1. d4 {[%clk 0:03:00]}  d5 {[%clk 0:02:58]} 2. c4 {[%clk 0:03:01]}  c6 {[%clk 0:02:58]} 3. Nc3 {[%clk 0:03:00]}  Nf6 {[%clk 0:02:58]} 4. e3 {[%clk 0:03:00]}  a6 {[%clk 0:02:58]} 5. Nf3 {[%clk 0:02:56]}  Bf5 {[%clk 0:02:57]} 6. Qb3 {[%clk 0:02:44]}  Ra7 {[%clk 0:02:57]} 7. Nh4 {[%clk 0:02:41]}  Bg6 {[%clk 0:02:41]} 8. Nxg6 {[%clk 0:02:40]}  hxg6 {[%clk 0:02:42]} 9. cxd5 {[%clk 0:02:21]}  cxd5 {[%clk 0:02:41]} 10. Bd3 {[%clk 0:01:54]}  e6 {[%clk 0:02:41]} 11. O-O {[%clk 0:01:52]}  Nc6 {[%clk 0:02:40]} 12. Bd2 {[%clk 0:01:47]}  Bd6 {[%clk 0:02:39]} 13. h3 {[%clk 0:01:46]}  Qe7 {[%clk 0:02:28]} 14. Qd1 {[%clk 0:01:25]}  Bb8 {[%clk 0:02:21]} 15. Rc1 {[%clk 0:01:07]}  e5 {[%clk 0:02:06]} 16. dxe5 {[%clk 0:01:03]}  Qxe5 {[%clk 0:02:07]} 17. f4 {[%clk 0:01:03]}  Qe7 {[%clk 0:02:07]} 18. Qf3 {[%clk 0:00:52]}  O-O {[%clk 0:02:07]} 19. Nxd5 {[%clk 0:00:25]}  Nxd5 {[%clk 0:02:06]} 20. Qxd5 {[%clk 0:00:25]}  Rd8 {[%clk 0:01:59]} 21. Qb3 {[%clk 0:00:19]}  Qd7 {[%clk 0:01:40]} 22. Bxg6 {[%clk 0:00:14]}  Qxd2 {[%clk 0:01:34]} 23. Rfd1 {[%clk 0:00:07]}  Qa5 {[%clk 0:01:34]} 24. Qxf7+ {[%clk 0:00:04]}  Kh8 {[%clk 0:01:34]} 25. Bf5 {[%clk 0:00:02]}  b5 {[%clk 0:00:35]} 26. Qh5+ {[%clk 0:00:01]}  Kg8 {[%clk 0:00:35]} 27. Be6+ {[%clk 0:00:01]}  Kf8 {[%clk 0:00:36]} 28. Qh8+ {[%clk 0:00:02]}  Ke7 {[%clk 0:00:36]} 29. Qxg7+ {[%clk 0:00:03]}  Kxe6 {[%clk 0:00:36]} 30. Qg6+ {[%clk 0:00:03]}  Ke7 {[%clk 0:00:36]} 31. Qg7+ {[%clk 0:00:04]}  Ke8 {[%clk 0:00:34]} 32. Qg8+ {[%clk 0:00:04]}  Ke7 {[%clk 0:00:33]} 33. Qg7+ {[%clk 0:00:01]}  Ke8 {[%clk 0:00:26]} 34. Qg8+ {[%clk 0:00:01]}  Ke7 {[%clk 0:00:26]} 35. Qg7+ {[%clk 0:00:02]} 1/2-1/2


[Site "https://www.chess.com"]

[Event "Titled Tuesday Blitz June 20 Late 2023"]
[White "Rodriguez Santiago, Jaime"]
[Black "Jovic, Stanoje"]
[WhiteFideId "3100898"]
[BlackFideId "905020"]
[WhiteElo "2025"]
[BlackElo "2236"]
[Result "0-1"]
[Round "6"]
[TimeControl "180+2"]
[Date "2023.06.20"]
[WhiteClock "0:00:14"]
[BlackClock "0:01:00"]
[Board "116"]

1. c4 {[%clk 0:03:00]}  e5 {[%clk 0:02:57]} 2. Nc3 {[%clk 0:02:59]}  Nf6 {[%clk 0:02:57]} 3. g3 {[%clk 0:02:58]}  c6 {[%clk 0:02:56]} 4. Nf3 {[%clk 0:02:57]}  e4 {[%clk 0:02:55]} 5. Nd4 {[%clk 0:02:56]}  d5 {[%clk 0:02:55]} 6. cxd5 {[%clk 0:02:55]}  cxd5 {[%clk 0:02:50]} 7. Bg2 {[%clk 0:02:55]}  Bc5 {[%clk 0:02:49]} 8. Nb3 {[%clk 0:02:54]}  Bb6 {[%clk 0:02:48]} 9. O-O {[%clk 0:02:53]}  h5 {[%clk 0:02:42]} 10. d3 {[%clk 0:02:44]}  e3 {[%clk 0:02:37]} 11. d4 {[%clk 0:02:33]}  exf2+ {[%clk 0:02:33]} 12. Rxf2 {[%clk 0:02:34]}  h4 {[%clk 0:02:31]} 13. Bg5 {[%clk 0:02:31]}  hxg3 {[%clk 0:02:30]} 14. hxg3 {[%clk 0:02:29]}  Be6 {[%clk 0:02:28]} 15. Qd3 {[%clk 0:02:14]}  Nc6 {[%clk 0:02:21]} 16. Rd1 {[%clk 0:01:41]}  Qd7 {[%clk 0:02:17]} 17. Bxf6 {[%clk 0:01:36]}  gxf6 {[%clk 0:02:16]} 18. e4 {[%clk 0:01:33]}  dxe4 {[%clk 0:02:10]} 19. Nxe4 {[%clk 0:01:29]}  O-O-O {[%clk 0:02:02]} 20. Nbc5 {[%clk 0:01:20]}  Qxd4 {[%clk 0:01:50]} 21. Qxd4 {[%clk 0:01:15]}  Rxd4 {[%clk 0:01:50]} 22. Rxd4 {[%clk 0:01:13]}  Nxd4 {[%clk 0:01:50]} 23. Rxf6 {[%clk 0:01:09]}  Bxa2 {[%clk 0:01:40]} 24. Nd6+ {[%clk 0:01:03]}  Kb8 {[%clk 0:01:37]} 25. Ndxb7 {[%clk 0:00:59]}  Nb3 {[%clk 0:01:29]} 26. Rc6 {[%clk 0:00:34]}  Rc8 {[%clk 0:01:17]} 27. Kf1 {[%clk 0:00:18]}  Nxc5 {[%clk 0:01:04]} 28. Rxc8+ {[%clk 0:00:16]}  Kxc8 {[%clk 0:01:04]} 29. Nd6+ {[%clk 0:00:16]}  Kd7 {[%clk 0:01:01]} 30. Nb5 {[%clk 0:00:14]}  Bc4+ {[%clk 0:01:00]} 0-1


[Site "https://www.chess.com"]

[Event "Titled Tuesday Blitz June 20 Late 2023"]
[White "Pan, Kevin"]
[Black "disciplinedbrat"]
[WhiteFideId "30915708"]
[WhiteElo "2233"]
[BlackElo "2254"]
[Result "1-0"]
[Round "6"]
[TimeControl "180+2"]
[Date "2023.06.20"]
[WhiteClock "0:00:18"]
[BlackClock "0:00:15"]
[Board "121"]

1. e4 {[%clk 0:02:57]}  g6 {[%clk 0:02:59]} 2. d4 {[%clk 0:02:57]}  Bg7 {[%clk 0:03:00]} 3. Nc3 {[%clk 0:02:58]}  d6 {[%clk 0:03:00]} 4. Nf3 {[%clk 0:02:58]}  a6 {[%clk 0:03:00]} 5. Be2 {[%clk 0:02:59]}  b5 {[%clk 0:03:00]} 6. a3 {[%clk 0:02:59]}  Nd7 {[%clk 0:03:00]} 7. Be3 {[%clk 0:02:59]}  Bb7 {[%clk 0:03:00]} 8. O-O {[%clk 0:02:58]}  c5 {[%clk 0:03:01]} 9. dxc5 {[%clk 0:02:52]}  dxc5 {[%clk 0:03:01]} 10. Qd2 {[%clk 0:02:15]}  Qc7 {[%clk 0:02:43]} 11. Nd5 {[%clk 0:02:05]}  Bxd5 {[%clk 0:02:37]} 12. Qxd5 {[%clk 0:02:06]}  Rd8 {[%clk 0:02:32]} 13. e5 {[%clk 0:01:42]}  Bxe5 {[%clk 0:02:09]} 14. Nxe5 {[%clk 0:01:40]}  Qxe5 {[%clk 0:02:07]} 15. Qxe5 {[%clk 0:01:39]}  Nxe5 {[%clk 0:02:06]} 16. Bxc5 {[%clk 0:01:40]}  Nf6 {[%clk 0:01:50]} 17. Rfd1 {[%clk 0:00:59]}  Nfd7 {[%clk 0:01:27]} 18. Bb4 {[%clk 0:00:49]}  Nc6 {[%clk 0:01:24]} 19. Bc3 {[%clk 0:00:48]}  f6 {[%clk 0:01:06]} 20. Bf3 {[%clk 0:00:45]}  Nce5 {[%clk 0:01:02]} 21. Bd5 {[%clk 0:00:45]}  Nb6 {[%clk 0:00:42]} 22. Be6 {[%clk 0:00:39]}  Rd6 {[%clk 0:00:42]} 23. Rxd6 {[%clk 0:00:37]}  exd6 {[%clk 0:00:43]} 24. Bd4 {[%clk 0:00:35]}  Nbc4 {[%clk 0:00:40]} 25. f4 {[%clk 0:00:33]}  Ke7 {[%clk 0:00:27]} 26. Bd5 {[%clk 0:00:32]}  Nd7 {[%clk 0:00:25]} 27. Re1+ {[%clk 0:00:31]}  Kd8 {[%clk 0:00:25]} 28. Re6 {[%clk 0:00:24]}  Re8 {[%clk 0:00:24]} 29. Bxf6+ {[%clk 0:00:20]}  Nxf6 {[%clk 0:00:24]} 30. Rxf6 {[%clk 0:00:21]}  Nxb2 {[%clk 0:00:22]} 31. Rxd6+ {[%clk 0:00:21]}  Kc7 {[%clk 0:00:22]} 32. Rxa6 {[%clk 0:00:21]}  Nd1 {[%clk 0:00:22]} 33. Rc6+ {[%clk 0:00:22]}  Kd7 {[%clk 0:00:22]} 34. h4 {[%clk 0:00:19]}  Re1+ {[%clk 0:00:20]} 35. Kh2 {[%clk 0:00:20]}  Ne3 {[%clk 0:00:21]} 36. Bf3 {[%clk 0:00:20]}  h5 {[%clk 0:00:21]} 37. Rxg6 {[%clk 0:00:20]}  Nxc2 {[%clk 0:00:20]} 38. Rg7+ {[%clk 0:00:20]}  Kd6 {[%clk 0:00:20]} 39. Ra7 {[%clk 0:00:20]}  Kc5 {[%clk 0:00:20]} 40. a4 {[%clk 0:00:20]}  b4 {[%clk 0:00:20]} 41. Rb7 {[%clk 0:00:20]}  Nd4 {[%clk 0:00:20]} 42. a5 {[%clk 0:00:20]}  b3 {[%clk 0:00:20]} 43. a6 {[%clk 0:00:20]}  Ra1 {[%clk 0:00:21]} 44. a7 {[%clk 0:00:20]}  Nb5 {[%clk 0:00:21]} 45. Be2 {[%clk 0:00:20]}  Nxa7 {[%clk 0:00:20]} 46. Rxb3 {[%clk 0:00:20]}  Nc6 {[%clk 0:00:20]} 47. Rb5+ {[%clk 0:00:20]}  Kd6 {[%clk 0:00:20]} 48. Rxh5 {[%clk 0:00:21]}  Nd4 {[%clk 0:00:21]} 49. Bf3 {[%clk 0:00:21]}  Rf1 {[%clk 0:00:20]} 50. Kg3 {[%clk 0:00:21]}  Ke6 {[%clk 0:00:20]} 51. Rh6+ {[%clk 0:00:21]}  Kf7 {[%clk 0:00:20]} 52. Rh5 {[%clk 0:00:21]}  Kf6 {[%clk 0:00:20]} 53. Re5 {[%clk 0:00:22]}  Nf5+ {[%clk 0:00:20]} 54. Kg4 {[%clk 0:00:21]}  Nh6+ {[%clk 0:00:20]} 55. Kh5 {[%clk 0:00:20]}  Nf7 {[%clk 0:00:21]} 56. Ra5 {[%clk 0:00:18]}  Rc1 {[%clk 0:00:20]} 57. g4 {[%clk 0:00:18]}  Rc8 {[%clk 0:00:18]} 58. g5+ {[%clk 0:00:18]}  Kg7 {[%clk 0:00:18]} 59. Ra7 {[%clk 0:00:17]}  Rh8+ {[%clk 0:00:19]} 60. Kg4 {[%clk 0:00:18]}  Rd8 {[%clk 0:00:19]} 61. h5 {[%clk 0:00:17]}  Kg8 {[%clk 0:00:19]} 62. g6 {[%clk 0:00:17]}  Nd6 {[%clk 0:00:16]} 63. Bd5+ {[%clk 0:00:17]}  Kh8 {[%clk 0:00:16]} 64. h6 {[%clk 0:00:18]}  Ne8 {[%clk 0:00:15]} 65. Rh7# {[%clk 0:00:18]} 1-0


[Site "https://www.chess.com"]

[Event "Titled Tuesday Blitz June 20 Late 2023"]
[White "Krishnakumar, Sriram"]
[Black "rionelG"]
[WhiteFideId "30915856"]
[WhiteElo "2462"]
[BlackElo "2253"]
[Result "0-1"]
[Round "6"]
[TimeControl "180+2"]
[Date "2023.06.20"]
[WhiteClock "0:00:45"]
[BlackClock "0:00:08"]
[Board "122"]

1. e4 {[%clk 0:03:00]}  c5 {[%clk 0:02:47]} 2. Nf3 {[%clk 0:03:00]}  d6 {[%clk 0:02:47]} 3. Bb5+ {[%clk 0:02:59]}  Nd7 {[%clk 0:02:47]} 4. a4 {[%clk 0:02:58]}  a6 {[%clk 0:02:47]} 5. Bc4 {[%clk 0:02:56]}  Ne5 {[%clk 0:02:44]} 6. Nxe5 {[%clk 0:02:55]}  dxe5 {[%clk 0:02:44]} 7. O-O {[%clk 0:02:55]}  Nf6 {[%clk 0:02:43]} 8. d3 {[%clk 0:02:55]}  e6 {[%clk 0:02:41]} 9. a5 {[%clk 0:02:54]}  Be7 {[%clk 0:02:39]} 10. Be3 {[%clk 0:02:52]}  O-O {[%clk 0:02:38]} 11. Nd2 {[%clk 0:02:52]}  Bd7 {[%clk 0:02:36]} 12. Qe2 {[%clk 0:02:40]}  h6 {[%clk 0:02:35]} 13. Nf3 {[%clk 0:02:38]}  Qc7 {[%clk 0:02:34]} 14. Rfb1 {[%clk 0:02:36]}  Bc6 {[%clk 0:02:33]} 15. Nd2 {[%clk 0:02:32]}  Rfd8 {[%clk 0:02:12]} 16. f3 {[%clk 0:02:29]}  Nh5 {[%clk 0:02:09]} 17. Qf2 {[%clk 0:02:28]}  Bb5 {[%clk 0:02:02]} 18. b3 {[%clk 0:02:16]}  Nf4 {[%clk 0:01:59]} 19. Kh1 {[%clk 0:02:08]}  Rac8 {[%clk 0:01:47]} 20. g3 {[%clk 0:02:07]}  Ng6 {[%clk 0:01:40]} 21. Rb2 {[%clk 0:01:59]}  Bg5 {[%clk 0:01:38]} 22. Nf1 {[%clk 0:01:56]}  Ne7 {[%clk 0:01:35]} 23. Rba2 {[%clk 0:01:49]}  Qd6 {[%clk 0:01:30]} 24. Bxb5 {[%clk 0:01:45]}  axb5 {[%clk 0:01:29]} 25. a6 {[%clk 0:01:46]}  bxa6 {[%clk 0:01:28]} 26. Rxa6 {[%clk 0:01:45]}  Bxe3 {[%clk 0:01:21]} 27. Nxe3 {[%clk 0:01:40]}  Qd4 {[%clk 0:01:19]} 28. Nd1 {[%clk 0:01:32]}  Nc6 {[%clk 0:01:09]} 29. Qd2 {[%clk 0:01:20]}  Rd7 {[%clk 0:00:52]} 30. Nf2 {[%clk 0:01:07]}  c4 {[%clk 0:00:19]} 31. bxc4 {[%clk 0:01:05]}  bxc4 {[%clk 0:00:19]} 32. R1a4 {[%clk 0:01:04]}  Ne7 {[%clk 0:00:14]} 33. c3 {[%clk 0:00:57]}  Qc5 {[%clk 0:00:13]} 34. Rxc4 {[%clk 0:00:56]}  Qxc4 {[%clk 0:00:13]} 35. Ra7 {[%clk 0:00:48]}  Qb5 {[%clk 0:00:10]} 36. Rxd7 {[%clk 0:00:47]}  Qxd7 {[%clk 0:00:11]} 37. d4 {[%clk 0:00:48]}  exd4 {[%clk 0:00:10]} 38. cxd4 {[%clk 0:00:49]}  Rd8 {[%clk 0:00:10]} 39. d5 {[%clk 0:00:49]}  exd5 {[%clk 0:00:10]} 40. e5 {[%clk 0:00:50]}  Qe6 {[%clk 0:00:10]} 41. Ng4 {[%clk 0:00:51]}  d4 {[%clk 0:00:10]} 42. Qf4 {[%clk 0:00:50]}  d3 {[%clk 0:00:11]} 43. Qd2 {[%clk 0:00:51]}  Nf5 {[%clk 0:00:08]} 44. Kg2 {[%clk 0:00:49]}  h5 {[%clk 0:00:08]} 45. Nf2 {[%clk 0:00:49]}  Qxe5 {[%clk 0:00:08]} 46. Ne4 {[%clk 0:00:49]}  Nd4 {[%clk 0:00:08]} 47. Qxd3 {[%clk 0:00:49]}  Ne6 {[%clk 0:00:08]} 48. Qe3 {[%clk 0:00:47]}  Rb8 {[%clk 0:00:07]} 49. Qf2 {[%clk 0:00:45]}  Rb2 {[%clk 0:00:07]} 50. Nd2 {[%clk 0:00:44]}  Qc3 {[%clk 0:00:06]} 51. Qa7 {[%clk 0:00:44]}  Rxd2+ {[%clk 0:00:06]} 52. Kh3 {[%clk 0:00:45]}  Qf6 {[%clk 0:00:05]} 53. Qa8+ {[%clk 0:00:44]}  Rd8 {[%clk 0:00:06]} 54. Qe4 {[%clk 0:00:43]}  Ng5+ {[%clk 0:00:06]} 55. Kg2 {[%clk 0:00:44]}  Nxe4 {[%clk 0:00:06]} 56. fxe4 {[%clk 0:00:44]}  Rd2+ {[%clk 0:00:07]} 57. Kh3 {[%clk 0:00:44]}  Qe6+ {[%clk 0:00:08]} 58. Kh4 {[%clk 0:00:45]}  Qg4# {[%clk 0:00:08]} 0-1


[Site "https://www.chess.com"]

[Event "Titled Tuesday Blitz June 20 Late 2023"]
[White "Yurasova, Daria"]
[Black "Quirke, Jeffrey"]
[WhiteFideId "34146919"]
[BlackFideId "2013029"]
[WhiteElo "2109"]
[BlackElo "2218"]
[Result "0-1"]
[Round "6"]
[TimeControl "180+2"]
[Date "2023.06.20"]
[WhiteClock "0:00:02"]
[BlackClock "0:00:11"]
[Board "124"]

1. e4 {[%clk 0:03:00]}  e6 {[%clk 0:02:42]} 2. d4 {[%clk 0:03:00]}  d5 {[%clk 0:02:42]} 3. Nd2 {[%clk 0:02:59]}  dxe4 {[%clk 0:02:43]} 4. Nxe4 {[%clk 0:02:59]}  Bd7 {[%clk 0:02:43]} 5. Bd3 {[%clk 0:02:58]}  Bc6 {[%clk 0:02:43]} 6. c3 {[%clk 0:02:57]}  Nd7 {[%clk 0:02:42]} 7. Nf3 {[%clk 0:02:52]}  Ngf6 {[%clk 0:02:42]} 8. Ng3 {[%clk 0:02:40]}  g6 {[%clk 0:02:41]} 9. O-O {[%clk 0:02:39]}  Bg7 {[%clk 0:02:41]} 10. Bg5 {[%clk 0:02:37]}  O-O {[%clk 0:02:40]} 11. Qd2 {[%clk 0:02:36]}  Bxf3 {[%clk 0:02:39]} 12. gxf3 {[%clk 0:02:35]}  c5 {[%clk 0:02:21]} 13. Ne4 {[%clk 0:02:31]}  Qc7 {[%clk 0:02:21]} 14. dxc5 {[%clk 0:02:13]}  Nxe4 {[%clk 0:02:12]} 15. fxe4 {[%clk 0:02:13]}  Nxc5 {[%clk 0:02:12]} 16. Qe2 {[%clk 0:02:10]}  Nxd3 {[%clk 0:02:08]} 17. Qxd3 {[%clk 0:02:11]}  h6 {[%clk 0:02:03]} 18. Bh4 {[%clk 0:02:10]}  Be5 {[%clk 0:01:47]} 19. Bg3 {[%clk 0:02:08]}  Rad8 {[%clk 0:01:30]} 20. Qe3 {[%clk 0:02:04]}  Kg7 {[%clk 0:01:27]} 21. Kg2 {[%clk 0:02:03]}  b6 {[%clk 0:01:16]} 22. Rad1 {[%clk 0:02:02]}  g5 {[%clk 0:00:55]} 23. Qf3 {[%clk 0:01:32]}  f6 {[%clk 0:00:51]} 24. Rfe1 {[%clk 0:01:18]}  Qc4 {[%clk 0:00:44]} 25. Bxe5 {[%clk 0:01:09]}  fxe5 {[%clk 0:00:44]} 26. Qg3 {[%clk 0:01:04]}  Qc5 {[%clk 0:00:32]} 27. b4 {[%clk 0:00:59]}  Qc7 {[%clk 0:00:29]} 28. Qe3 {[%clk 0:00:38]}  Rf4 {[%clk 0:00:24]} 29. f3 {[%clk 0:00:37]}  Rdf8 {[%clk 0:00:18]} 30. Rd3 {[%clk 0:00:34]}  Qf7 {[%clk 0:00:17]} 31. Red1 {[%clk 0:00:33]}  Kg6 {[%clk 0:00:17]} 32. Rd7 {[%clk 0:00:25]}  Qf6 {[%clk 0:00:17]} 33. R7d3 {[%clk 0:00:15]}  g4 {[%clk 0:00:17]} 34. fxg4 {[%clk 0:00:14]}  Rxg4+ {[%clk 0:00:13]} 35. Kh1 {[%clk 0:00:02]}  Qf1+ {[%clk 0:00:11]} 0-1


[Site "https://www.chess.com"]

[Event "Titled Tuesday Blitz June 20 Late 2023"]
[White "Melikhov, Evgeny V."]
[Black "Zaitsev, Alexander"]
[WhiteFideId "4122046"]
[BlackFideId "4164490"]
[WhiteElo "2158"]
[BlackElo "2373"]
[Result "1/2-1/2"]
[Round "6"]
[TimeControl "180+2"]
[Date "2023.06.20"]
[WhiteClock "0:00:08"]
[BlackClock "0:00:24"]
[Board "127"]

1. d4 {[%clk 0:03:00]}  Nf6 {[%clk 0:03:00]} 2. c4 {[%clk 0:03:00]}  e6 {[%clk 0:03:00]} 3. Nc3 {[%clk 0:02:59]}  Bb4 {[%clk 0:03:01]} 4. Qc2 {[%clk 0:02:59]}  O-O {[%clk 0:03:01]} 5. e4 {[%clk 0:02:58]}  d6 {[%clk 0:02:58]} 6. e5 {[%clk 0:02:57]}  dxe5 {[%clk 0:02:57]} 7. dxe5 {[%clk 0:02:57]}  Ng4 {[%clk 0:02:58]} 8. Nf3 {[%clk 0:02:56]}  Nc6 {[%clk 0:02:58]} 9. Bf4 {[%clk 0:02:56]}  Nd4 {[%clk 0:02:54]} 10. Qd2 {[%clk 0:02:34]}  f6 {[%clk 0:01:59]} 11. Qxd4 {[%clk 0:01:46]}  Qxd4 {[%clk 0:01:52]} 12. Nxd4 {[%clk 0:01:45]}  fxe5 {[%clk 0:01:52]} 13. Be3 {[%clk 0:01:45]}  exd4 {[%clk 0:01:35]} 14. Bxd4 {[%clk 0:01:45]}  e5 {[%clk 0:01:32]} 15. Be3 {[%clk 0:01:41]}  Nxe3 {[%clk 0:01:21]} 16. fxe3 {[%clk 0:01:40]}  Bc5 {[%clk 0:01:22]} 17. Bd3 {[%clk 0:01:16]}  Bxe3 {[%clk 0:01:09]} 18. Nd5 {[%clk 0:01:11]}  Bf2+ {[%clk 0:01:03]} 19. Kd2 {[%clk 0:01:05]}  c6 {[%clk 0:00:46]} 20. Ne7+ {[%clk 0:00:58]}  Kh8 {[%clk 0:00:45]} 21. Nxc8 {[%clk 0:00:58]}  Raxc8 {[%clk 0:00:45]} 22. Rhf1 {[%clk 0:00:50]}  g6 {[%clk 0:00:45]} 23. Kc2 {[%clk 0:00:46]}  Kg7 {[%clk 0:00:45]} 24. Rad1 {[%clk 0:00:43]}  Rc7 {[%clk 0:00:41]} 25. Be4 {[%clk 0:00:43]}  Bd4 {[%clk 0:00:41]} 26. Rxf8 {[%clk 0:00:40]}  Kxf8 {[%clk 0:00:42]} 27. Rf1+ {[%clk 0:00:40]}  Kg7 {[%clk 0:00:43]} 28. b4 {[%clk 0:00:38]}  Rd7 {[%clk 0:00:35]} 29. a4 {[%clk 0:00:36]}  Rd8 {[%clk 0:00:32]} 30. b5 {[%clk 0:00:32]}  cxb5 {[%clk 0:00:30]} 31. axb5 {[%clk 0:00:32]}  Rd7 {[%clk 0:00:28]} 32. Bd5 {[%clk 0:00:29]}  a6 {[%clk 0:00:24]} 33. bxa6 {[%clk 0:00:26]}  bxa6 {[%clk 0:00:25]} 34. Rf3 {[%clk 0:00:21]}  a5 {[%clk 0:00:22]} 35. Ra3 {[%clk 0:00:21]}  Ra7 {[%clk 0:00:22]} 36. Ra4 {[%clk 0:00:20]}  Kf6 {[%clk 0:00:22]} 37. Kd3 {[%clk 0:00:20]}  Ke7 {[%clk 0:00:22]} 38. Ke4 {[%clk 0:00:19]}  Kd6 {[%clk 0:00:23]} 39. h4 {[%clk 0:00:18]}  Kc5 {[%clk 0:00:23]} 40. g4 {[%clk 0:00:17]}  Bc3 {[%clk 0:00:23]} 41. h5 {[%clk 0:00:15]}  gxh5 {[%clk 0:00:23]} 42. gxh5 {[%clk 0:00:15]}  Kd6 {[%clk 0:00:23]} 43. h6 {[%clk 0:00:13]}  Bd2 {[%clk 0:00:22]} 44. c5+ {[%clk 0:00:12]}  Kxc5 {[%clk 0:00:21]} 45. Kxe5 {[%clk 0:00:10]}  Bxh6 {[%clk 0:00:18]} 46. Be4 {[%clk 0:00:08]}  Re7+ {[%clk 0:00:16]} 47. Kf5 {[%clk 0:00:07]}  Bd2 {[%clk 0:00:17]} 48. Bc2 {[%clk 0:00:06]}  Bb4 {[%clk 0:00:17]} 49. Ra2 {[%clk 0:00:05]}  Re2 {[%clk 0:00:16]} 50. Bb3 {[%clk 0:00:04]}  Rxa2 {[%clk 0:00:15]} 51. Bxa2 {[%clk 0:00:05]}  Kd4 {[%clk 0:00:14]} 52. Kg5 {[%clk 0:00:04]}  Bd2+ {[%clk 0:00:13]} 53. Kh5 {[%clk 0:00:04]}  Kc3 {[%clk 0:00:13]} 54. Be6 {[%clk 0:00:03]}  h6 {[%clk 0:00:10]} 55. Kg4 {[%clk 0:00:03]}  Kd4 {[%clk 0:00:10]} 56. Kh3 {[%clk 0:00:03]}  Ke5 {[%clk 0:00:09]} 57. Bf7 {[%clk 0:00:04]}  Kf4 {[%clk 0:00:09]} 58. Bg8 {[%clk 0:00:04]}  a4 {[%clk 0:00:09]} 59. Kh2 {[%clk 0:00:04]}  Kg5 {[%clk 0:00:09]} 60. Kh1 {[%clk 0:00:04]}  h5 {[%clk 0:00:10]} 61. Bf7 {[%clk 0:00:04]}  h4 {[%clk 0:00:10]} 62. Be6 {[%clk 0:00:04]}  a3 {[%clk 0:00:11]} 63. Bd5 {[%clk 0:00:04]}  Kf4 {[%clk 0:00:11]} 64. Bc4 {[%clk 0:00:05]}  Kg3 {[%clk 0:00:12]} 65. Bd5 {[%clk 0:00:05]}  h3 {[%clk 0:00:13]} 66. Bc4 {[%clk 0:00:05]}  Be3 {[%clk 0:00:13]} 67. Bd5 {[%clk 0:00:05]}  Kf4 {[%clk 0:00:13]} 68. Bc4 {[%clk 0:00:06]}  Ke5 {[%clk 0:00:14]} 69. Bg8 {[%clk 0:00:05]}  Kd4 {[%clk 0:00:14]} 70. Bf7 {[%clk 0:00:06]}  Kc3 {[%clk 0:00:15]} 71. Bg8 {[%clk 0:00:06]}  Kd2 {[%clk 0:00:16]} 72. Bf7 {[%clk 0:00:06]}  Bf4 {[%clk 0:00:16]} 73. Bg8 {[%clk 0:00:06]}  Kc3 {[%clk 0:00:17]} 74. Bf7 {[%clk 0:00:07]}  Kd4 {[%clk 0:00:18]} 75. Bg8 {[%clk 0:00:07]}  Ke5 {[%clk 0:00:18]} 76. Bf7 {[%clk 0:00:07]}  Kf6 {[%clk 0:00:18]} 77. Ba2 {[%clk 0:00:07]}  Ke7 {[%clk 0:00:19]} 78. Bb3 {[%clk 0:00:07]}  Kd6 {[%clk 0:00:20]} 79. Ba2 {[%clk 0:00:08]}  Kc5 {[%clk 0:00:20]} 80. Bb3 {[%clk 0:00:08]}  Kd4 {[%clk 0:00:21]} 81. Bg8 {[%clk 0:00:08]}  Kc3 {[%clk 0:00:22]} 82. Bf7 {[%clk 0:00:08]}  Kb2 {[%clk 0:00:23]} 83. Bg8 {[%clk 0:00:08]}  Kc3 {[%clk 0:00:24]} 1/2-1/2


[Site "https://www.chess.com"]

[Event "Titled Tuesday Blitz June 20 Late 2023"]
[White "Lalanne, Pablo"]
[Black "Uzcategui Rodriguez, Alejandro"]
[WhiteFideId "112151"]
[BlackFideId "3903400"]
[WhiteElo "2120"]
[BlackElo "2252"]
[Result "0-1"]
[Round "6"]
[TimeControl "180+2"]
[Date "2023.06.20"]
[WhiteClock "0:00:07"]
[BlackClock "0:00:14"]
[Board "128"]

1. d4 {[%clk 0:03:00]}  Nf6 {[%clk 0:02:57]} 2. c4 {[%clk 0:03:00]}  d6 {[%clk 0:02:56]} 3. Nc3 {[%clk 0:02:59]}  Nbd7 {[%clk 0:02:55]} 4. e4 {[%clk 0:02:59]}  e5 {[%clk 0:02:55]} 5. Nf3 {[%clk 0:02:59]}  Be7 {[%clk 0:02:54]} 6. Be2 {[%clk 0:02:56]}  O-O {[%clk 0:02:53]} 7. O-O {[%clk 0:02:55]}  c6 {[%clk 0:02:52]} 8. d5 {[%clk 0:02:50]}  cxd5 {[%clk 0:02:44]} 9. cxd5 {[%clk 0:02:47]}  Nc5 {[%clk 0:02:44]} 10. Nd2 {[%clk 0:02:39]}  a5 {[%clk 0:02:39]} 11. f3 {[%clk 0:02:34]}  Nh5 {[%clk 0:02:37]} 12. Nc4 {[%clk 0:02:30]}  f5 {[%clk 0:02:34]} 13. Be3 {[%clk 0:02:26]}  b6 {[%clk 0:02:30]} 14. exf5 {[%clk 0:02:16]}  Bg5 {[%clk 0:02:14]} 15. Bf2 {[%clk 0:02:08]}  Nf4 {[%clk 0:02:11]} 16. Ne4 {[%clk 0:01:59]}  Be7 {[%clk 0:02:02]} 17. g4 {[%clk 0:01:54]}  g6 {[%clk 0:01:42]} 18. f6 {[%clk 0:01:52]}  Rxf6 {[%clk 0:01:32]} 19. Nxf6+ {[%clk 0:01:52]}  Bxf6 {[%clk 0:01:33]} 20. a3 {[%clk 0:01:23]}  Bh4 {[%clk 0:01:28]} 21. b4 {[%clk 0:01:17]}  Bxf2+ {[%clk 0:01:27]} 22. Rxf2 {[%clk 0:01:14]}  Nh3+ {[%clk 0:01:25]} 23. Kg2 {[%clk 0:01:14]}  Nxf2 {[%clk 0:01:25]} 24. Kxf2 {[%clk 0:01:14]}  axb4 {[%clk 0:01:04]} 25. axb4 {[%clk 0:01:14]}  Rxa1 {[%clk 0:01:01]} 26. Qxa1 {[%clk 0:01:15]}  Nb3 {[%clk 0:01:02]} 27. Qa8 {[%clk 0:00:53]}  Kg7 {[%clk 0:00:28]} 28. Nxd6 {[%clk 0:00:41]}  Qxd6 {[%clk 0:00:27]} 29. Qxc8 {[%clk 0:00:41]}  e4 {[%clk 0:00:25]} 30. fxe4 {[%clk 0:00:26]}  Qxh2+ {[%clk 0:00:24]} 31. Ke1 {[%clk 0:00:25]}  Qg1+ {[%clk 0:00:20]} 32. Bf1 {[%clk 0:00:24]}  Qe3+ {[%clk 0:00:19]} 33. Be2 {[%clk 0:00:22]}  Nd4 {[%clk 0:00:16]} 34. Qc4 {[%clk 0:00:14]}  Nf3+ {[%clk 0:00:14]} 35. Kf1 {[%clk 0:00:07]}  Nd2+ {[%clk 0:00:14]} 0-1


[Site "https://www.chess.com"]